bitfinex-derivatives/quotes_SOLF0:USTF0_20250101
["timestamp","ask_amount","ask_price","bid_price","bid_amount"]
[1735689804244,2.6362,190.08,190.07,3.4]
[1735689804441,7.1877022,190.12,190.07,16.71387591]
[1735689805047,2.6362,190.08,190.07,16.71387591]
[1735689805239,28.75080881,190.12,190.07,16.71387591]
[1735689806547,2.6362,190.08,190.07,16.71387591]
[1735689807836,2.6362,190.08,190.07,13.31387591]
[1735689808035,2.6358,190.11,190.07,15.95017591]
[1735689808236,7.1877022,190.11,190.07,13.31387591]
[1735689808836,2.6362,190.09,190.07,13.31387591]
[1735689809148,7.1877022,190.12,190.07,13.31387591]
[1735689810051,28.75080881,190.12,190.07,13.31387591]
[1735689810448,2.6361,190.08,190.07,13.31387591]
[1735689811647,2.6366,190.05,190.04,13.31387591]
[1735689811844,28.75080881,190.1,190.01,14.90527591]
[1735689812040,7.1877022,190.08,190.01,13.31387591]
[1735689812643,0.80327196,190.07,190.01,13.31387591]
[1735689812839,2.6366,190.06,190.01,13.31387591]
[1735689813049,7.1877022,190.05,190.01,13.31387591]
[1735689814050,7.1877022,190.04,190.01,13.31387591]
[1735689814445,2.637,190.02,190.01,13.31387591]
[1735689815449,7.1877022,190.04,189.99,3.34]
[1735689815648,2.6373,190.01,189.99,3.34]
[1735689815848,2.6373,190.01,190.0,13.31387591]
[1735689817845,2.6373,190.01,189.97,3.34]
[1735689817846,2.6376,189.98,189.97,13.31387591]
[1735689820552,7.1877022,189.99,189.97,13.31387591]
[1735689821555,2.6375,189.99,189.97,13.31387591]
[1735689822453,7.1877022,190.01,189.97,13.31387591]
[1735689822651,2.6376,189.98,189.97,13.31387591]
[1735689827659,7.1877022,190.0,189.97,13.31387591]
[1735689828160,9.8251022,190.0,189.97,13.31387591]
[1735689828358,7.1877022,190.0,189.97,13.31387591]
[1735689828756,2.6375,189.99,189.97,13.31387591]
[1735689828958,7.1877022,190.02,189.97,13.31387591]
[1735689829960,2.6376,189.98,189.97,13.31387591]
[1735689830159,7.1877022,190.02,189.97,13.31387591]
[1735689831665,2.6376,189.98,189.97,13.31387591]
[1735689831965,7.1877022,190.03,189.97,13.31387591]
[1735689832559,2.6376,189.98,189.97,13.31387591]
[1735689832765,7.1877022,190.03,189.93,13.31387591]
[1735689832958,2.43693318,190.02,189.93,13.31387591]
[1735689833155,2.638,189.94,189.93,13.31387591]
[1735689841065,6.9072,190.02,189.93,13.31387591]
[1735689841668,2.6379,189.96,189.93,13.31387591]
[1735689842264,2.6379,189.95,189.93,13.31387591]
[1735689842661,6.9072,190.02,189.93,13.31387591]
[1735689842868,2.638,189.94,189.93,13.31387591]
[1735689848665,9.87368424,189.94,189.93,13.31387591]
[1735689848866,2.638,189.95,189.93,13.31387591]
[1735689849072,86.82821097,189.98,189.93,13.31387591]
[1735689849274,86.82821097,189.98,189.97,13.31387591]
[1735689849970,1.6333,190.02,189.97,13.31387591]
[1735689850173,0.80376835,190.01,189.97,13.31387591]
[1735689850476,2.6374,189.98,189.97,13.31387591]
[1735689851477,6.424,190.04,189.97,13.31387591]
[1735689851676,2.6373,189.99,189.97,13.31387591]
[1735689852676,2.6374,189.98,189.97,13.31387591]
[1735689852973,3.184,190.04,189.95,3.24]
[1735689853277,2.6377,189.96,189.95,3.24]
[1735689853472,2.6377,189.96,189.94,13.31387591]
[1735689854275,2.6379,189.95,189.94,13.31387591]
[1735689856679,3.184,190.04,189.94,13.31387591]
[1735689856680,90.01221097,190.04,189.94,13.31387591]
[1735689856977,86.82821097,190.04,190.0,13.31387591]
[1735689857179,2.637,190.02,190.0,13.31387591]
[1735689857978,2.637,190.01,190.0,13.31387591]
[1735689862179,2.6369,190.02,190.0,13.31387591]
[1735689866181,2.6369,190.02,190.01,8.52876884]
[1735689866884,2.6372,190.0,189.99,3.24]
[1735689867184,8.52876884,190.04,189.87,2.49654431]
[1735689867386,2.6372,190.0,189.95,8.52876884]
[1735689867581,1.549,190.03,189.95,8.52876884]
[1735689867780,1.6107,190.01,189.95,8.52876884]
[1735689867981,0.80346069,190.0,189.95,8.52876884]
[1735689868182,0.80345164,189.99,189.95,8.52876884]
[1735689868486,2.6377,189.96,189.95,8.52876884]
[1735689869682,2.6376,189.97,189.95,8.52876884]
[1735689869882,2.6376,189.97,189.96,8.52876884]
[1735689878594,2.6379,189.96,189.93,3.24]
[1735689878795,2.6379,189.96,189.95,8.52876884]
[1735689896400,1.47,189.97,189.78,10.53429193]
[1735689896708,0.80431563,189.96,189.92,8.52876884]
[1735689898405,2.6382,189.93,189.92,8.52876884]
[1735689899507,59.4733129,189.97,189.92,8.52876884]
[1735689899710,3.44209866,189.96,189.95,8.52876884]
[1735689899905,59.4733129,189.97,189.95,8.52876884]
[1735689900607,1.47,189.97,189.95,8.52876884]
[1735689900997,2.6378,189.96,189.95,8.52876884]
[1735689905009,4.1078,189.96,189.95,8.52876884]
[1735689910206,2.6379,189.95,189.92,3.14]
[1735689910410,2.6379,189.95,189.94,8.52876884]
[1735689913207,58.0033129,189.99,189.94,8.52876884]
[1735689913412,86.82821097,190.01,189.98,8.52876884]
[1735689913710,86.82821097,190.01,190.0,8.52876884]
[1735689914207,86.82821097,190.04,190.0,8.52876884]
[1735689914414,86.82821097,190.04,190.03,8.52876884]
[1735689914612,87.63336538,190.04,190.03,8.52876884]
[1735689914913,89.46481097,190.04,190.03,8.52876884]
[1735689915415,2.6366,190.04,190.03,8.52876884]
[1735689924717,55.78610523,190.09,189.98,5.7774]
[1735689924912,2.6369,190.02,189.98,5.7774]
[1735689926419,55.78610523,190.09,189.98,5.7774]
[1735689926619,2.6371,190.01,189.98,5.7774]
[1735689927217,2.6366,190.05,190.02,2.6369]
[1735689927515,144.7136849,190.17,190.03,3.14]
[1735689927711,144.7136849,190.17,189.99,1.7334]
[1735689927712,0.80555579,190.15,190.14,8.52876884]
[1735689927916,144.7136849,190.17,190.14,8.52876884]
[1735689928617,1.5911,190.2,190.14,8.52876884]
[1735689928917,0.80598991,190.19,190.14,8.52876884]
[1735689929513,2.6351,190.15,190.14,8.52876884]
[1735689929912,10.11986884,190.2,190.04,3.1774]
[1735689930214,8.52876884,190.14,190.04,3.1774]
[1735689930519,2.6361,190.08,190.07,8.52876884]
[1735689932111,3.12,190.13,190.07,8.52876884]
[1735689932305,3.12,190.13,190.05,2.6364]
[1735689932306,1.6548,190.15,190.1,8.52876884]
[1735689932509,1.6548,190.15,190.12,8.52876884]
[1735689932714,2.6354,190.13,190.12,8.52876884]
[1735689934417,11.90376884,190.2,190.12,8.52876884]
[1735689934717,2.6352,190.15,190.14,8.52876884]
[1735689937511,2.6349,190.17,190.14,8.52876884]
[1735689937713,2.6349,190.17,190.16,8.52876884]
[1735689938318,3.5841,190.24,190.16,8.52876884]
[1735689938519,2.6347,190.19,190.14,2.6352]
[1735689938818,3.5841,190.24,190.13,3.12]
[1735689939017,3.5841,190.24,190.19,8.52876884]
[1735689939018,0.80594533,190.23,190.19,8.52876884]
[1735689940518,2.6344,190.2,190.19,8.52876884]
[1735689941822,2.6342,190.22,190.19,8.52876884]
[1735689942022,11.64876884,190.28,190.13,3.12]
[1735689942220,11.64876884,190.28,190.19,8.52876884]
[1735689942221,0.80598667,190.26,190.19,8.52876884]
[1735689943524,11.64876884,190.28,190.19,8.52876884]
[1735689943525,2.6344,190.2,190.19,8.52876884]
[1735689946026,2.6343,190.21,190.19,8.52876884]
[1735689946231,2.6343,190.21,190.2,8.52876884]
[1735689948528,2.6346,190.19,190.18,3.12]
[1735689948725,2.6346,190.19,190.18,11.64876884]
[1735689949524,1.99575618,190.27,190.18,11.64876884]
[1735689949525,2.6345,190.2,190.18,11.64876884]
[1735689949724,2.6345,190.2,190.19,8.52876884]
[1735689949920,5.2664,190.3,190.19,8.52876884]
[1735689950126,0.80671186,190.29,190.19,1.8396]
[1735689950324,2.6342,190.22,190.19,1.8396]
[1735689950528,2.6342,190.22,190.21,8.52876884]
[1735689952631,2.6341,190.23,190.21,8.52876884]
[1735689952933,2.6341,190.23,190.22,8.52876884]
[1735689954231,11.64876884,190.31,190.16,3.12]
[1735689954232,2.6349,190.17,190.16,3.12]
[1735689954433,2.6349,190.17,190.16,11.64876884]
[1735689956727,8.7552,190.26,190.16,11.64876884]
[1735689956925,8.7552,190.26,190.21,8.52876884]
[1735689957533,2.6341,190.22,190.21,8.52876884]
[1735689959429,3.12,190.3,190.21,8.52876884]
[1735689959635,2.634,190.24,190.23,8.52876884]
[1735689960838,8.52876884,190.28,190.21,8.52876884]
[1735689961038,2.6341,190.22,190.21,8.52876884]
[1735689965041,2.6345,190.2,190.16,3.12]
[1735689965339,11.64876884,190.28,190.19,8.52876884]
[1735689965638,0.80667102,190.27,190.19,8.52876884]
[1735689965832,0.80667102,190.27,190.12,1.813]
[1735689965833,8.52876884,190.26,190.13,2.6354]
[1735689966030,0.80667102,190.25,190.18,8.52876884]
[1735689966541,0.80661422,190.24,190.18,8.52876884]
[1735689966737,0.80661422,190.23,190.12,1.813]
[1735689966934,11.64876884,190.22,190.14,8.52876884]
[1735689967134,2.56331422,190.21,190.14,8.52876884]
[1735689967335,2.6351,190.15,190.14,8.52876884]
[1735689969042,2.6354,190.13,190.12,8.52876884]
[1735689970340,3.12,190.17,190.05,3.12]
[1735689970544,2.6357,190.11,190.1,8.52876884]
[1735689974545,2.636,190.09,190.08,8.52876884]
[1735689976446,2.6358,190.11,190.08,8.52876884]
[1735689976748,2.6358,190.11,190.1,8.52876884]
[1735689977652,3.44222844,190.11,190.1,8.52876884]
[1735689978451,0.80642844,190.11,190.08,8.52876884]
[1735689978644,3.12,190.16,190.08,8.52876884]
[1735689978645,9.33519728,190.15,190.08,8.52876884]
[1735689978852,0.80642844,190.14,190.06,8.52876884]
[1735689979050,2.6362,190.07,190.06,8.52876884]
[1735689979456,10.31066884,190.15,190.06,8.52876884]
[1735689979654,10.31066884,190.15,190.09,8.52876884]
[1735689980152,0.80613415,190.14,190.09,8.52876884]
[1735689980559,2.6358,190.1,190.09,8.52876884]
[1735689981862,2.6361,190.08,190.07,8.52876884]
[1735689982048,3.12,190.11,190.03,1.7828]
[1735689982255,2.6368,190.03,190.02,3.648]
[1735689982458,2.6368,190.03,190.02,12.17676884]
[1735689983360,8.52876884,190.09,189.98,1.7298]
[1735689983554,0.8056244,190.08,190.01,8.52876884]
[1735689983855,2.6369,190.02,190.01,8.52876884]
[1735689984748,11.64876884,190.05,189.97,11.02448087]
[1735689984953,17.6987,190.13,189.8,229.5189846]
[1735689984954,8.52876884,190.03,189.96,8.52876884]
[1735689985154,3.92546488,190.02,189.96,8.52876884]
[1735689985356,2.6376,189.97,189.96,8.52876884]
[1735689985861,0.80530222,189.97,189.94,8.52876884]
[1735689986052,2.6379,189.95,189.94,8.52876884]
[1735689986256,3.12,190.02,189.91,12.00392111]
[1735689986457,0.80530343,190.01,189.91,12.00392111]
[1735689987159,2.6383,189.93,189.91,12.00392111]
[1735689987355,12.00392111,190.01,189.91,12.00392111]
[1735689987657,2.6387,189.9,189.88,12.00392111]
[1735689988759,2.6387,189.89,189.88,12.00392111]
[1735689989055,3.12,189.96,189.85,16.98162111]
[1735689989249,0.80505984,189.95,189.85,16.98162111]
[1735689989958,0.80505588,189.94,189.85,16.98162111]
[1735689990155,0.80505588,189.93,189.85,16.98162111]
[1735689990359,3.12,189.96,189.85,16.98162111]
[1735689990550,2.6388,189.89,189.85,13.86162111]
[1735689991049,3.12,189.96,189.85,13.86162111]
[1735689991050,2.6389,189.88,189.85,13.86162111]
[1735689993062,2.639,189.87,189.85,13.86162111]
[1735689994267,1.9055,189.98,189.85,13.86162111]
[1735689994563,1.7512,189.99,189.9,12.00392111]
[1735689994564,0.80608986,189.97,189.9,12.00392111]
[1735689994761,1.7512,189.99,189.9,12.00392111]
[1735689994961,0.8059684,189.98,189.88,3.12]
[1735689995256,2.6389,189.88,189.87,12.00392111]
[1735690004071,2.6385,189.91,189.87,17.78282111]
[1735690004265,3.14,189.98,189.9,12.00392111]
[1735690004468,1.8511,190.0,189.93,12.00392111]
[1735690004469,0.80694996,189.97,189.93,12.00392111]
[1735690004669,2.6377,189.97,189.93,12.00392111]
[1735690005172,55.80544145,190.02,189.93,12.00392111]
[1735690005469,55.80544145,190.02,189.96,12.00392111]
[1735690005674,3.78,190.08,189.99,12.00392111]
[1735690005870,0.80722627,190.07,189.99,12.00392111]
[1735690006672,2.6364,190.06,190.0,2.6372]
[1735690006876,2.6364,190.06,190.02,12.00392111]
[1735690007475,6.9307,190.14,190.03,3.14]
[1735690007674,0.80758491,190.13,190.05,12.00392111]
[1735690007868,2.6355,190.12,190.05,12.00392111]
[1735690008575,2.6355,190.12,190.06,2.6363]
[1735690010777,2.6354,190.13,190.08,12.00392111]
[1735690010980,2.6354,190.13,190.08,15.12392111]
[1735690011378,3.12,190.18,190.08,15.12392111]
[1735690011579,0.80764297,190.17,190.08,15.12392111]
[1735690012479,2.6353,190.14,190.08,17.76002111]
[1735690012879,3.12,190.19,190.08,17.76002111]
[1735690012880,3.12,190.19,190.08,15.12392111]
[1735690013084,0.80772675,190.18,190.08,15.12392111]
[1735690013488,2.6353,190.14,190.08,15.12392111]
[1735690015688,2.6353,190.14,190.08,12.00392111]
[1735690015886,2.6357,190.11,190.08,15.12392111]
[1735690018091,2.6358,190.1,190.08,15.12392111]
[1735690020784,15.12392111,190.2,190.08,15.12392111]
[1735690020984,2.636,190.09,190.08,15.12392111]
[1735690022184,2.636,190.09,190.08,11.64319849]
[1735690022488,8.52319849,190.11,190.05,8.52319849]
[1735690022690,3.12,190.15,190.05,8.52319849]
[1735690022691,0.80761233,190.1,190.05,8.52319849]
[1735690022884,1.9242,190.14,190.04,5.7378]
[1735690022885,1.9242,190.14,190.07,8.52319849]
[1735690023189,0.80766047,190.13,190.07,8.52319849]
[1735690024392,0.80766047,190.13,190.09,8.52319849]
[1735690024692,8.52319849,190.16,190.09,8.52319849]
[1735690024893,0.80777764,190.15,190.09,8.52319849]
[1735690025993,0.80795517,190.14,190.09,8.52319849]
[1735690026292,0.80795517,190.13,190.09,8.52319849]
[1735690026490,2.6355,190.13,190.09,8.52319849]
[1735690028189,8.52319849,190.16,190.09,8.52319849]
[1735690028393,0.80802689,190.15,190.14,8.52319849]
[1735690028591,0.80802689,190.2,190.14,8.52319849]
[1735690028794,2.6349,190.17,190.14,8.52319849]
[1735690029887,0.8081359,190.16,190.14,8.52319849]
[1735690030087,2.635,190.16,190.14,8.52319849]
[1735690031387,1.8696,190.27,190.16,2.6349]
[1735690031693,9.33138724,190.26,190.18,8.52319849]
[1735690031990,0.80818875,190.25,190.18,8.52319849]
[1735690032190,2.6343,190.21,190.18,8.52319849]
[1735690032386,0.80818875,190.2,190.18,8.52319849]
[1735690032585,0.80818875,190.2,190.14,1.8834]
[1735690032787,0.80818875,190.2,190.14,3.12]
[1735690032987,8.52319849,190.19,190.11,8.52319849]
[1735690033200,2.6353,190.14,190.11,8.52319849]
[1735690033695,8.52319849,190.19,190.11,8.52319849]
[1735690033902,2.6355,190.13,190.11,8.52319849]
[1735690034101,8.52319849,190.17,190.08,8.7046]
[1735690034397,2.6358,190.11,190.08,1.8834]
[1735690035593,2.6359,190.1,190.08,1.8834]
[1735690037300,2.636,190.09,190.08,1.8834]
[1735690037502,13.31670764,190.17,190.04,16.43670764]
[1735690037703,0.8081245,190.16,190.04,16.43670764]
[1735690037901,0.8081245,190.16,190.04,13.31670764]
[1735690038200,2.6355,190.13,190.04,13.31670764]
[1735690038398,0.8081245,190.12,190.04,13.31670764]
[1735690038602,0.8081245,190.11,190.04,13.31670764]
[1735690038800,2.6365,190.06,190.04,13.31670764]
[1735690039203,2.6366,190.05,190.04,13.31670764]
[1735690039400,3.12,190.13,190.04,13.31670764]
[1735690039609,0.80832536,190.12,190.04,13.31670764]
[1735690040103,2.6365,190.07,190.04,13.31670764]
[1735690041394,2.6365,190.06,190.04,13.31670764]
[1735690041694,3.12,190.13,190.04,13.31670764]
[1735690041893,2.6365,190.07,190.04,13.31670764]
[1735690043006,2.6365,190.06,190.04,13.31670764]
[1735690043507,3.12,190.13,190.04,13.31670764]
[1735690043703,0.80834864,190.12,190.04,13.31670764]
[1735690044101,2.6363,190.08,190.05,2.6366]
[1735690044301,2.6363,190.08,190.04,13.31670764]
[1735690044697,3.12,190.15,190.04,15.95340764]
[1735690044905,2.6364,190.07,190.04,13.31670764]
[1735690046309,3.12,190.14,190.04,13.31670764]
[1735690046511,2.6363,190.08,190.05,2.6366]
[1735690046711,3.12,190.14,190.04,13.31670764]
[1735690046910,2.6364,190.08,190.04,15.95350764]
[1735690047113,15.26040764,190.17,190.07,13.31670764]
[1735690047114,1.9437,190.17,190.07,13.31670764]
[1735690047315,0.80909473,190.16,190.1,13.31670764]
[1735690047514,2.6356,190.13,190.1,15.95260764]
[1735690047707,2.6356,190.13,190.1,13.31670764]
[1735690048114,1.9437,190.17,190.1,13.31670764]
[1735690048314,2.6357,190.12,190.1,13.31670764]
[1735690048720,1.9437,190.17,190.1,13.31670764]
[1735690048927,2.6358,190.11,190.1,13.31670764]
[1735690049125,1.9437,190.17,190.08,3.12]
[1735690049318,2.636,190.1,190.08,3.12]
[1735690050818,2.6357,190.12,190.09,2.636]
[1735690051216,1.9437,190.17,190.09,2.636]
[1735690051420,0.8090301,190.16,190.08,3.12]
[1735690052218,0.80903071,190.15,190.08,5.7562]
[1735690052420,0.80903071,190.14,190.08,5.7562]
[1735690052629,0.80903071,190.13,190.08,5.7562]
[1735690052829,2.6358,190.12,190.08,5.7562]
[1735690053029,1.9437,190.17,190.08,3.12]
[1735690053230,0.80911545,190.16,190.08,3.12]
[1735690053631,0.80911545,190.16,190.07,13.31670764]
[1735690053930,3.12,190.15,190.04,16.43670764]
[1735690054124,0.80911545,190.14,190.04,16.43670764]
[1735690054431,2.6364,190.08,190.07,8.5245961]
[1735690055225,3.44541766,190.08,190.07,8.5245961]
[1735690055823,3.44541766,190.08,190.04,5.7569]
[1735690056027,3.44541766,190.08,190.07,8.5245961]
[1735690056028,2.6364,190.08,190.07,8.5245961]
[1735690056232,3.44531932,190.08,190.07,8.5245961]
[1735690057032,3.12,190.16,190.07,8.5245961]
[1735690057234,0.80891753,190.15,190.1,8.5245961]
[1735690057532,2.6359,190.12,190.1,8.5245961]
[1735690057735,0.8089176,190.11,190.1,8.5245961]
[1735690060227,0.80898372,190.11,190.1,8.5245961]
[1735690060930,3.44488372,190.11,190.1,8.5245961]
[1735690062935,3.44475619,190.11,190.1,8.5245961]
[1735690065229,0.80885619,190.11,190.1,8.5245961]
[1735690065436,86.82821097,190.19,190.1,8.5245961]
[1735690065638,0.80937176,190.18,190.14,8.5245961]
[1735690065831,87.63758273,190.18,190.14,8.5245961]
[1735690066032,0.80937176,190.17,190.14,8.5245961]
[1735690066232,0.80931827,190.16,190.14,8.5245961]
[1735690066431,3.44471827,190.15,190.14,8.5245961]
[1735690068139,2.6357,190.13,190.12,8.5245961]
[1735690068338,3.44501827,190.13,190.12,8.5245961]
[1735690070142,2.6365,190.08,190.06,3.12]
[1735690070345,2.6365,190.08,190.07,8.5245961]
[1735690070745,2.6363,190.09,190.07,8.5245961]
[1735690071546,0.80943755,190.08,190.07,8.5245961]
[1735690072447,3.44583755,190.08,190.07,8.5245961]
[1735690073447,3.44588678,190.08,190.07,8.5245961]
[1735690076147,3.44634406,190.08,190.07,8.5245961]
[1735690078648,2.6364,190.08,190.07,8.5245961]
[1735690078846,3.44625125,190.08,190.07,8.5245961]
[1735690079251,104.49443198,190.14,190.07,8.5245961]
[1735690079549,104.49443198,190.14,190.13,8.5245961]
[1735690079853,104.49443198,190.14,190.11,3.12]
[1735690080052,104.49443198,190.14,190.13,8.5245961]
[1735690080248,105.29822422,190.14,190.13,8.5245961]
[1735690080747,0.80379224,190.14,190.13,8.5245961]
[1735690080948,3.43959224,190.14,190.13,8.5245961]
[1735690081754,3.43952551,190.14,190.13,8.5245961]
[1735690084858,3.43905499,190.14,190.13,8.5245961]
[1735690085857,3.43905211,190.14,190.13,8.5245961]
[1735690088160,2.6359,190.13,190.09,3.12]
[1735690088361,2.6359,190.13,190.12,8.5245961]
[1735690088668,3.43822871,190.13,190.12,8.5245961]
[1735690089358,3.43824942,190.13,190.12,8.5245961]
[1735690091959,0.80234942,190.13,190.02,1.8316]
[1735690092161,2.68984942,190.17,190.1,8.5245961]
[1735690092357,0.80234942,190.16,190.1,8.5245961]
[1735690092962,2.6362,190.11,190.1,8.5245961]
[1735690093163,3.43854942,190.11,190.1,8.5245961]
[1735690093965,3.43933099,190.11,190.1,8.5245961]
[1735690094557,0.80313099,190.11,190.1,8.5245961]
[1735690095061,0.80313099,190.11,190.1,11.1608961]
[1735690095261,2.6358,190.14,190.1,11.1608961]
[1735690095461,0.80313099,190.13,190.1,2.6363]
[1735690095957,3.43903099,190.13,190.09,2.6364]
[1735690096161,2.6359,190.13,190.12,8.5245961]
[1735690096564,3.43928172,190.13,190.12,8.5245961]
[1735690097266,3.43929395,190.13,190.12,8.5245961]
[1735690098067,2.6353,190.17,190.12,11.1604961]
[1735690098264,2.6353,190.17,190.16,8.5245961]
[1735690099270,3.43239126,190.17,190.16,8.5245961]
[1735690101773,3.43200192,190.17,190.16,8.5245961]
[1735690104463,3.43194937,190.17,190.16,8.5245961]
[1735690105370,3.43194937,190.17,190.11,3.12]
[1735690105371,0.79664937,190.17,190.11,3.12]
[1735690105574,2.6358,190.14,190.11,3.12]
[1735690105775,2.6358,190.14,190.13,8.5245961]
[1735690105973,3.43242926,190.14,190.13,8.5245961]
[1735690106370,0.79662926,190.14,190.03,1.9456]
[1735690106577,0.79662926,190.13,190.1,8.5245961]
[1735690106875,0.79662926,190.12,190.1,8.5245961]
[1735690107070,3.8631,190.17,190.1,8.5245961]
[1735690107071,3.43265523,190.11,190.1,8.5245961]
[1735690107870,2.6359,190.13,190.1,8.5245961]
[1735690108077,2.6359,190.13,190.12,8.5245961]
[1735690108374,3.43246309,190.13,190.12,8.5245961]
[1735690112269,3.43251096,190.13,190.12,8.5245961]
[1735690112479,4.22912192,190.13,190.12,8.5245961]
[1735690113073,4.22912523,190.13,190.12,8.5245961]
[1735690113275,3.43251096,190.13,190.12,8.5245961]
[1735690113476,4.22912474,190.13,190.12,8.5245961]
[1735690113678,4.22912474,190.13,190.09,3.12]
[1735690113679,1.59322474,190.13,190.09,3.12]
[1735690113878,2.6363,190.1,190.09,3.12]
[1735690114076,3.43291378,190.1,190.09,3.12]
[1735690115171,3.43302535,190.1,190.09,3.12]
[1735690116679,3.43302535,190.1,190.09,11.6445961]
[1735690117775,3.43302525,190.1,190.09,11.6445961]
[1735690119081,3.43302525,190.1,190.09,8.5245961]
[1735690120376,3.43309001,190.1,190.09,8.5245961]
[1735690123181,3.43309992,190.1,190.09,8.5245961]
[1735690123985,104.48370334,190.17,190.09,8.5245961]
[1735690124189,104.48370334,190.17,190.15,8.5245961]
[1735690124688,86.82821097,190.18,190.15,8.5245961]
[1735690124888,0.79088546,190.17,190.15,8.5245961]
[1735690125588,3.42638809,190.16,190.15,8.5245961]
[1735690126089,0.79088809,190.16,190.15,8.5245961]
[1735690127086,0.79088809,190.19,190.15,8.5245961]
[1735690127384,0.79088809,190.18,190.15,8.5245961]
[1735690127589,2.6355,190.16,190.15,8.5245961]
[1735690127797,3.42638809,190.16,190.15,8.5245961]
[1735690128297,3.42638911,190.16,190.15,8.5245961]
[1735690129098,3.42634126,190.16,190.15,8.5245961]
[1735690129493,0.79084126,190.16,190.03,1.9456]
[1735690129695,0.79084126,190.15,190.11,8.5245961]
[1735690129995,2.636,190.13,190.11,8.5245961]
[1735690130194,0.79075883,190.12,190.11,8.5245961]
[1735690130398,0.79075883,190.12,190.08,2.6366]
[1735690130696,0.79075883,190.11,190.08,2.6366]
[1735690130894,0.79075596,190.1,190.08,2.6366]
[1735690131090,2.6361,190.12,190.08,2.6366]
[1735690131395,0.79058895,190.11,190.07,2.6367]
[1735690131592,0.79058895,190.1,190.07,2.6367]
[1735690131789,2.6357,190.15,190.09,8.5245961]
[1735690132092,0.79044449,190.14,190.11,8.5245961]
[1735690132290,0.79044449,190.13,190.11,8.5245961]
[1735690132488,0.79044449,190.12,190.11,8.5245961]
[1735690132894,0.79044449,190.16,190.11,8.5245961]
[1735690133099,0.79044449,190.15,190.11,8.5245961]
[1735690133300,0.79044449,190.14,190.11,8.5245961]
[1735690133499,86.82821097,190.17,190.11,8.5245961]
[1735690133500,2.636,190.12,190.11,8.5245961]
[1735690133703,3.42635546,190.12,190.11,8.5245961]
[1735690135994,0.79035546,190.12,190.11,11.1607961]
[1735690136300,0.79066057,190.13,190.11,11.1607961]
[1735690136496,0.79066057,190.12,190.11,2.6362]
[1735690137096,0.79066057,190.13,190.11,2.6362]
[1735690137397,0.79066057,190.13,190.12,8.5245961]
[1735690137597,0.79066057,190.13,190.12,11.1605961]
[1735690137995,0.79066057,190.18,190.12,11.1605961]
[1735690138199,2.6355,190.16,190.15,8.5245961]
[1735690138397,3.42616057,190.16,190.15,8.5245961]
[1735690138800,3.42619516,190.16,190.15,8.5245961]
[1735690139103,0.79069516,190.16,190.15,8.5245961]
[1735690139498,0.79069516,190.19,190.15,8.5245961]
[1735690139706,3.42589516,190.18,190.17,8.5245961]
[1735690141004,3.4259029,190.18,190.17,8.5245961]
[1735690142600,0.7907029,190.18,190.15,8.5245961]
[1735690142805,0.7907029,190.17,190.15,8.5245961]
[1735690143109,3.4262029,190.16,190.15,8.5245961]
[1735690143906,3.42628717,190.16,190.15,8.5245961]
[1735690145101,3.42628717,190.16,190.12,2.636]
[1735690145403,0.79078717,190.15,190.12,2.636]
[1735690145809,0.79089274,190.14,190.12,2.636]
[1735690146000,0.79089274,190.15,190.12,2.636]
[1735690146201,0.79090019,190.14,190.12,2.636]
[1735690146401,2.6356,190.15,190.13,8.5245961]
[1735690146605,2.6356,190.15,190.14,8.5245961]
[1735690146806,3.42649881,190.15,190.14,8.5245961]
[1735690151512,0.79089881,190.15,190.1,6.4044]
[1735690151713,2.6361,190.13,190.1,3.7681]
[1735690151910,2.6361,190.13,190.12,8.5245961]
[1735690152110,3.42685256,190.13,190.12,8.5245961]
[1735690153009,0.79075256,190.13,190.1,1.915]
[1735690153215,2.6363,190.11,190.08,3.12]
[1735690153415,2.6363,190.11,190.1,8.5245961]
[1735690153815,3.42700546,190.11,190.1,8.5245961]
[1735690158015,0.79070546,190.11,190.1,8.5245961]
[1735690158817,86.82821097,190.18,190.1,8.5245961]
[1735690158818,2.636,190.13,190.1,8.5245961]
[1735690159019,2.636,190.13,190.12,8.5245961]
[1735690159221,3.42675277,190.13,190.12,8.5245961]
[1735690159417,0.79075277,190.13,190.08,3.12]
[1735690159621,95.35280707,190.19,190.12,8.5245961]
[1735690159820,0.790872,190.18,190.12,8.5245961]
[1735690160315,87.61908297,190.18,190.12,8.5245961]
[1735690160520,2.6361,190.13,190.12,8.5245961]
[1735690160721,3.426972,190.13,190.12,8.5245961]